Department Family,Entity,Date Paid,Expense Type,Expense Area,Supplier,Transaction Number,Amount (�),Supplier VAT Registration Number
BEIS,Met Office,2022-09-01,03 STAFF COSTS T&S,MARKETS,NEIL T CAMPBELL,471060,1000,-
BEIS,Met Office,2022-09-01,11 SERVICES,MARKETS,UNIVERSITY OF WORCESTER,471141,19448,100103412
BEIS,Met Office,2022-09-01,06 ACCOMMODATION,CHIEF FINANCIAL OFFICER,ST MODWEN VENTURES LTD,471142,112.5,975081008
BEIS,Met Office,2022-09-01,06 ACCOMMODATION,CHIEF FINANCIAL OFFICER,ST MODWEN VENTURES LTD,471143,750,975081008
BEIS,Met Office,2022-09-01,11 SERVICES,SERVICES,VOLKSWAGEN GROUP LEASING,471149,3924.25,BG745963883
BEIS,Met Office,2022-09-01,07 EQUIPMENT,TECHNOLOGY AND CIO,CDW LTD,471152,299.6,902194939
BEIS,Met Office,2022-09-01,11 SERVICES,CHIEF FINANCIAL OFFICER,POSTURITE (UK) LTD,471153,73.78,583565114
BEIS,Met Office,2022-09-01,11 SERVICES,CHIEF FINANCIAL OFFICER,POSTURITE (UK) LTD,471154,50,583565114
BEIS,Met Office,2022-09-01,03 STAFF COSTS T&S,SERVICES,CHARLIE'S TRAVEL LTD,471157,16.67,783848277
BEIS,Met Office,2022-09-01,11 SERVICES,CHIEF FINANCIAL OFFICER,Morton Fraser LLP,471159,60,269129336
BEIS,Met Office,2022-09-01,11 SERVICES,CHIEF FINANCIAL OFFICER,Morton Fraser LLP,471160,403,269129336
BEIS,Met Office,2022-09-01,11 SERVICES,CHIEF FINANCIAL OFFICER,LICENCE BUREAU LTD,471187,116.6,820219467
BEIS,Met Office,2022-09-01,06 ACCOMMODATION,CHIEF FINANCIAL OFFICER,TENNIE FACILITIES PROPERTY MANAGEMENT LTD,471189,207.15,982055803
BEIS,Met Office,2022-09-01,11 SERVICES,CHIEF FINANCIAL OFFICER,TENDER VICTORY,471194,1950,245 1698 90
BEIS,Met Office,2022-09-01,10 EQUIPMENT MAINTENANCE,SERVICES,YOUNG CALIBRATION LIMITED,471195,1980,673900720
BEIS,Met Office,2022-09-01,11 SERVICES,SERVICES,YOUNG CALIBRATION LIMITED,471195,15,673900720
BEIS,Met Office,2022-09-01,08 SOFTWARE LICENCES,TECHNOLOGY AND CIO,Esri (Uk) Ltd,471217,90262.5,787430791
BEIS,Met Office,2022-09-01,06 ACCOMMODATION,CHIEF FINANCIAL OFFICER,OCS Group UK Limited,471220,110148.22,GB238034379
BEIS,Met Office,2022-09-01,06 ACCOMMODATION,CHIEF FINANCIAL OFFICER,OCS Group UK Limited,471220,31938.49,GB238034379
BEIS,Met Office,2022-09-01,13 MISCELLANEOUS,PEOPLE,EDENRED - CHILDCARE VOUCHERS,471224,10985,649 503 520
BEIS,Met Office,2022-09-01,08 SOFTWARE LICENCES,TECHNOLOGY AND CIO,PRESENTATION CARTOGRAPHY LTD,471225,1033,-
BEIS,Met Office,2022-09-01,08 SOFTWARE LICENCES,TECHNOLOGY AND CIO,PRESENTATION CARTOGRAPHY LTD,471225,258.25,-
BEIS,Met Office,2022-09-02,11 SERVICES,SERVICES,HOTEL-STOP.,470189,742.5,747 7354 95
BEIS,Met Office,2022-09-02,07 EQUIPMENT,CHIEF FINANCIAL OFFICER,CDW LTD,471106,160.93,902194939
BEIS,Met Office,2022-09-02,13 MISCELLANEOUS,SCIENCE,DESIGNAMITE LTD,471140,240,817819989
BEIS,Met Office,2022-09-02,11 SERVICES,CHIEF FINANCIAL OFFICER,MITIE SECURITY LTD,471144,10390.5,416706654
BEIS,Met Office,2022-09-02,11 SERVICES,CHIEF FINANCIAL OFFICER,MITIE SECURITY LTD,471146,20780.59,416706654
BEIS,Met Office,2022-09-02,03 STAFF COSTS T&S,SERVICES,HCR LTD,471171,82.84,733 7205 46
BEIS,Met Office,2022-09-02,03 STAFF COSTS T&S,SERVICES,DBS FINANCE RECEIPTS CTS,471188,4045,888805068
BEIS,Met Office,2022-09-02,07 EQUIPMENT,CHIEF FINANCIAL OFFICER,CDW LTD,471191,888.74,902194939
BEIS,Met Office,2022-09-02,11 SERVICES,SERVICES,SOFTWIRE TECHNOLOGY LIMITED,471216,4200,752 1253 57
BEIS,Met Office,2022-09-02,11 SERVICES,CHIEF FINANCIAL OFFICER,BT GLOBAL SERVICES,471222,14185.64,245719348
BEIS,Met Office,2022-09-02,11 SERVICES,MARKETS,MOMENTUM INCORPORATED,471223,4000,598958541
BEIS,Met Office,2022-09-02,11 SERVICES,MARKETS,ADOPSTAR,471227,1250,115036848
BEIS,Met Office,2022-09-02,11 SERVICES,CHIEF FINANCIAL OFFICER,BT plc,471229,876.22,245719348
BEIS,Met Office,2022-09-02,11 SERVICES,TECHNOLOGY AND CIO,WIREFAST LTD,471257,2031.61,749536001
BEIS,Met Office,2022-09-02,11 SERVICES,TECHNOLOGY AND CIO,WIREFAST LTD,471258,980.82,749536001
BEIS,Met Office,2022-09-02,11 SERVICES,TECHNOLOGY AND CIO,WIREFAST LTD,471259,1552.36,749536001
BEIS,Met Office,2022-09-05,11 SERVICES,OTHER,HOGAN LOVELLS INTERNATIONAL LLP,469811,352860.82,GB123371543
BEIS,Met Office,2022-09-05,11 SERVICES,CHIEF FINANCIAL OFFICER,BT GLOBAL SERVICES,470837,1689.63,245719348
BEIS,Met Office,2022-09-05,11 SERVICES,OTHER,HOGAN LOVELLS INTERNATIONAL LLP,470844,41956.23,GB123371543
BEIS,Met Office,2022-09-05,11 SERVICES,OTHER,HOGAN LOVELLS INTERNATIONAL LLP,470844,81518.04,GB123371543
BEIS,Met Office,2022-09-05,11 SERVICES,OTHER,HOGAN LOVELLS INTERNATIONAL LLP,470844,143.61,GB123371543
BEIS,Met Office,2022-09-05,11 SERVICES,OTHER,HOGAN LOVELLS INTERNATIONAL LLP,471019,26960.34,GB123371543
BEIS,Met Office,2022-09-05,11 SERVICES,OTHER,HOGAN LOVELLS INTERNATIONAL LLP,471019,0,GB123371543
BEIS,Met Office,2022-09-05,11 SERVICES,MARKETS,DJS RESEARCH LIMITED,471139,13800,775718779
BEIS,Met Office,2022-09-05,11 SERVICES,CHIEF FINANCIAL OFFICER,Morton Fraser LLP,471161,550,269129336
BEIS,Met Office,2022-09-05,11 SERVICES,SERVICES,NSSL GLOBAL LTD,471168,19288.56,725151948
BEIS,Met Office,2022-09-05,06 ACCOMMODATION,CHIEF FINANCIAL OFFICER,MORAY COUNCIL,471213,1805.99,663755506
BEIS,Met Office,2022-09-05,13 MISCELLANEOUS,CHIEF FINANCIAL OFFICER,CARDIFF EXECUTIVE CENTRE LTD,471214,0.94,864497378
BEIS,Met Office,2022-09-05,04 CONTRACTORS,PEOPLE,MATRIX SCM LIMITED,471215,178711.11,249 5734 68
BEIS,Met Office,2022-09-05,13 MISCELLANEOUS,CHIEF FINANCIAL OFFICER,EAST ANGLIAN WATER COOLER CO,471219,50.35,676668178
BEIS,Met Office,2022-09-05,13 MISCELLANEOUS,CHIEF FINANCIAL OFFICER,NORSCOTT VENDING SERVICES LTD,471226,85,751402071
BEIS,Met Office,2022-09-05,11 SERVICES,PROGRAMMES,FLYFORM LTD,471250,1875,237333808
BEIS,Met Office,2022-09-05,11 SERVICES,CHIEF FINANCIAL OFFICER,Ashfords Llp,471253,320,844502439
BEIS,Met Office,2022-09-05,11 SERVICES,TECHNOLOGY AND CIO,BROADBEAN TECHNOLOGY LTD,471263,4887.5,GB184088778
BEIS,Met Office,2022-09-05,06 ACCOMMODATION,CHIEF FINANCIAL OFFICER,MITIE SECURITY LTD,471269,1388.88,416706654
BEIS,Met Office,2022-09-05,06 ACCOMMODATION,CHIEF FINANCIAL OFFICER,MITIE SECURITY LTD,471270,1215,416706654
BEIS,Met Office,2022-09-05,06 ACCOMMODATION,CHIEF FINANCIAL OFFICER,MITIE SECURITY LTD,471271,45,416706654
BEIS,Met Office,2022-09-05,11 SERVICES,CHIEF FINANCIAL OFFICER,MITIE SECURITY LTD,471272,38.58,416706654
BEIS,Met Office,2022-09-05,08 SOFTWARE LICENCES,TECHNOLOGY AND CIO,Ibm United Kingdom Ltd,471273,6292.52,107328000
BEIS,Met Office,2022-09-05,08 SOFTWARE LICENCES,PEOPLE,CATALYST IT,471276,1635.83,978169262
BEIS,Met Office,2022-09-05,08 SOFTWARE LICENCES,TECHNOLOGY AND CIO,Ibm United Kingdom Ltd,471277,6875.8,107328000
BEIS,Met Office,2022-09-05,08 SOFTWARE LICENCES,TECHNOLOGY AND CIO,GOOGLE IRELAND LTD,471280,49.65,6388047V
BEIS,Met Office,2022-09-05,08 SOFTWARE LICENCES,CHIEF FINANCIAL OFFICER,CEMAR,471308,315,915042161
BEIS,Met Office,2022-09-05,13 MISCELLANEOUS,SERVICES,AUTOMATED DOCUMENT SERVICES LTD,471312,3336.75,105353449
BEIS,Met Office,2022-09-06,08 SOFTWARE LICENCES,TECHNOLOGY AND CIO,CDW LTD,470382,44316,902194939
BEIS,Met Office,2022-09-06,07 EQUIPMENT,SERVICES,SONARDYNE INTERNATIONAL LIMITED,471211,525,GB 591 6950 04
BEIS,Met Office,2022-09-06,11 SERVICES,TECHNOLOGY AND CIO,SSE CONTRACTING LTD,471221,10912.87,382894546
BEIS,Met Office,2022-09-06,13 MISCELLANEOUS,SERVICES,Royal Meteorological Society,471228,110,-
BEIS,Met Office,2022-09-06,11 SERVICES,PROGRAMMES,FLYFORM LTD,471248,55290,237333808
BEIS,Met Office,2022-09-06,11 SERVICES,SERVICES,FLYFORM LTD,471249,4975,237333808
BEIS,Met Office,2022-09-06,08 SOFTWARE LICENCES,CHIEF FINANCIAL OFFICER,ADVANCED BUSINESS SOLUTIONS LTD,471262,60567.29,927547983
BEIS,Met Office,2022-09-06,11 SERVICES,MARKETS,Esri (Uk) Ltd,471268,6430,787430791
BEIS,Met Office,2022-09-06,11 SERVICES,MARKETS,DBS FINANCE RECEIPTS CTS,471278,24852.65,888805068
BEIS,Met Office,2022-09-06,11 SERVICES,MARKETS,DBS FINANCE RECEIPTS CTS,471279,12259.18,888805068
BEIS,Met Office,2022-09-06,11 SERVICES,MARKETS,SPOKE (INTERACTIVE) LTD,471301,700,840156451
BEIS,Met Office,2022-09-06,11 SERVICES,MARKETS,WORLDPAY LTD,471302,26.95,991280207
BEIS,Met Office,2022-09-06,11 SERVICES,PEOPLE,RUNTIME COLLECTIVE LTD T/A BRANDWATCH,471304,6174,754750710
BEIS,Met Office,2022-09-06,13 MISCELLANEOUS,PEOPLE,EDENRED I&M (IRS VOUCHERS),471305,24959.4,649 503 520
BEIS,Met Office,2022-09-06,03 STAFF COSTS T&S,SERVICES,CHARLIE'S TRAVEL LTD,471306,158.33,783848277
BEIS,Met Office,2022-09-06,03 STAFF COSTS T&S,SERVICES,CHARLIE'S TRAVEL LTD,471306,363,783848277
BEIS,Met Office,2022-09-06,11 SERVICES,TECHNOLOGY AND CIO,AKAMAI TECHNOLOGIES LTD,471307,25836.75,745091237
BEIS,Met Office,2022-09-06,11 SERVICES,TECHNOLOGY AND CIO,AKAMAI TECHNOLOGIES LTD,471307,4921.28,745091237
BEIS,Met Office,2022-09-06,11 SERVICES,PEOPLE,HEALTH ASSURED LIMITED,471310,1120,927 5242 17
BEIS,Met Office,2022-09-06,13 MISCELLANEOUS,CHIEF FINANCIAL OFFICER,BANNER GROUP LIMITED,471311,4.58,GB391085740
BEIS,Met Office,2022-09-06,13 MISCELLANEOUS,SERVICES,AUTOMATED DOCUMENT SERVICES LTD,471314,3604.25,105353449
BEIS,Met Office,2022-09-06,06 ACCOMMODATION,CHIEF FINANCIAL OFFICER,MOUNT CHARLES GROUP LTD,471335,576.36,517116274
BEIS,Met Office,2022-09-07,11 SERVICES,TECHNOLOGY AND CIO,AMAZON WEB SERVICES INC.,10736,211819.37,N/A
BEIS,Met Office,2022-09-07,11 SERVICES,TECHNOLOGY AND CIO,AMAZON WEB SERVICES INC.,10740,18836.46,N/A
BEIS,Met Office,2022-09-07,11 SERVICES,PROGRAMMES,UCAR INCOMING PAYMENTS,10743,13756.01,-
BEIS,Met Office,2022-09-07,11 SERVICES,MARKETS,ICIMOD,10765,9415.72,-
BEIS,Met Office,2022-09-07,11 SERVICES,MARKETS,ICIMOD,10765,21333.05,-
BEIS,Met Office,2022-09-07,11 SERVICES,MARKETS,ICIMOD,10775,42536.71,-
BEIS,Met Office,2022-09-07,11 SERVICES,MARKETS,"INTELLOVATIONS, LLC",10777,1830.03,-
BEIS,Met Office,2022-09-07,11 SERVICES,PROGRAMMES,"K F LEWIN CONSULTING, LLC",10778,1001.9,-
BEIS,Met Office,2022-09-07,STOCK,SERVICES,SCHLEIFRING GMBH,23641,0,DE811159634
BEIS,Met Office,2022-09-07,STOCK,SERVICES,SCHLEIFRING GMBH,23641,0,DE811159634
BEIS,Met Office,2022-09-07,TRADE CREDITORS,SERVICES,SCHLEIFRING GMBH,23641,10932.71,DE811159634
BEIS,Met Office,2022-09-07,TRADE CREDITORS,SERVICES,SCHLEIFRING GMBH,23641,10932.71,DE811159634
BEIS,Met Office,2022-09-07,STOCK,SERVICES,SCHLEIFRING GMBH,24138,0,DE811159634
BEIS,Met Office,2022-09-07,TRADE CREDITORS,SERVICES,SCHLEIFRING GMBH,24138,-10958.41,DE811159634
BEIS,Met Office,2022-09-07,05 CONSULTANTS,CHIEF FINANCIAL OFFICER,WT CONSULTANCY (SW) LTD,470404,5600,223 4662 25
BEIS,Met Office,2022-09-07,13 MISCELLANEOUS,OTHER,AIRTO LTD,470846,6924.75,448873792
BEIS,Met Office,2022-09-07,11 SERVICES,MARKETS,INSTITUTE OF WATER MODELLING (IWM) BANGLADESH,471156,22576.11,0014051470101
BEIS,Met Office,2022-09-07,06 ACCOMMODATION,CHIEF FINANCIAL OFFICER,EDF ENERGY CUSTOMERS PLC,471182,-159426.52,523041202
BEIS,Met Office,2022-09-07,06 ACCOMMODATION,CHIEF FINANCIAL OFFICER,EDF ENERGY CUSTOMERS PLC,471183,157058.44,523041202
BEIS,Met Office,2022-09-07,06 ACCOMMODATION,CHIEF FINANCIAL OFFICER,EDF ENERGY CUSTOMERS PLC,471184,-182565.5,523041202
BEIS,Met Office,2022-09-07,06 ACCOMMODATION,CHIEF FINANCIAL OFFICER,EDF ENERGY CUSTOMERS PLC,471185,178276.54,523041202
BEIS,Met Office,2022-09-07,11 SERVICES,TECHNOLOGY AND CIO,WT CONSULTANCY (SW) LTD,471275,1400,223 4662 25
BEIS,Met Office,2022-09-07,06 ACCOMMODATION,CHIEF FINANCIAL OFFICER,EDF ENERGY CUSTOMERS PLC,471281,180605.5,523041202
BEIS,Met Office,2022-09-07,06 ACCOMMODATION,CHIEF FINANCIAL OFFICER,EDF ENERGY CUSTOMERS PLC,471282,478611.36,523041202
BEIS,Met Office,2022-09-07,06 ACCOMMODATION,CHIEF FINANCIAL OFFICER,EDF ENERGY CUSTOMERS PLC,471283,163199.42,523041202
BEIS,Met Office,2022-09-07,11 SERVICES,MARKETS,CACI LTD,471348,93194.68,380609841
BEIS,Met Office,2022-09-07,11 SERVICES,MARKETS,CACI LTD,471349,672,380609841
BEIS,Met Office,2022-09-07,11 SERVICES,SERVICES,UK TELEMATICS LIMITED,471353,503.28,GB763051643
BEIS,Met Office,2022-09-07,07 EQUIPMENT,TECHNOLOGY AND CIO,COMPUTACENTER (UK) LTD,471354,2512.5,490334648
BEIS,Met Office,2022-09-07,11 SERVICES,PROGRAMMES,GLOBAL ACTION PLAN,471356,12675,GB 625 994 009
BEIS,Met Office,2022-09-07,11 SERVICES,PROGRAMMES,RSM,471360,4750,890965570
BEIS,Met Office,2022-09-07,06 ACCOMMODATION,CHIEF FINANCIAL OFFICER,ABOVE THE REST COMMERCIAL CLEANING LTD,471362,565,166969348
BEIS,Met Office,2022-09-07,11 SERVICES,PEOPLE,THE STRENGTHS PEOPLE LTD,471363,800,206868488
BEIS,Met Office,2022-09-07,11 SERVICES,PROGRAMMES,ROWE IT LTD,471391,14250,924964394
BEIS,Met Office,2022-09-07,11 SERVICES,PROGRAMMES,ROWE IT LTD,471393,98621.25,924964394
BEIS,Met Office,2022-09-08,PLANT AND EQUIPMENT,PROGRAMMES,VAISALA LTD,471158,70600,336100011
BEIS,Met Office,2022-09-08,PLANT AND EQUIPMENT,PROGRAMMES,VAISALA LTD,471158,15000,336100011
BEIS,Met Office,2022-09-08,PLANT AND EQUIPMENT,PROGRAMMES,VAISALA LTD,471158,11400,336100011
BEIS,Met Office,2022-09-08,07 EQUIPMENT,PROGRAMMES,VAISALA LTD,471158,10000,336100011
BEIS,Met Office,2022-09-08,PLANT AND EQUIPMENT,PROGRAMMES,VAISALA LTD,471172,-11700,336100011
BEIS,Met Office,2022-09-08,11 SERVICES,PROGRAMMES,FLYFORM LTD,471251,31840,237333808
BEIS,Met Office,2022-09-08,13 MISCELLANEOUS,PEOPLE,HEALTH MANAGEMENT LTD,471309,153.17,792250621
BEIS,Met Office,2022-09-08,07 EQUIPMENT,SERVICES,Campbell Scientific Ltd,471336,2613.2,428453933
BEIS,Met Office,2022-09-08,11 SERVICES,PROGRAMMES,LAUGHING PHOENIX LTD,471337,1200,989 4469 37
BEIS,Met Office,2022-09-08,10 EQUIPMENT MAINTENANCE,SERVICES,Goldisc Limited,471338,1700,861294416
BEIS,Met Office,2022-09-08,10 EQUIPMENT MAINTENANCE,SERVICES,Goldisc Limited,471338,1700,861294416
BEIS,Met Office,2022-09-08,10 EQUIPMENT MAINTENANCE,SERVICES,Goldisc Limited,471338,1700,861294416
BEIS,Met Office,2022-09-08,10 EQUIPMENT MAINTENANCE,SERVICES,Goldisc Limited,471338,1700,861294416
BEIS,Met Office,2022-09-08,10 EQUIPMENT MAINTENANCE,SERVICES,Goldisc Limited,471338,1700,861294416
BEIS,Met Office,2022-09-08,11 SERVICES,SERVICES,Goldisc Limited,471338,125,861294416
BEIS,Met Office,2022-09-08,10 EQUIPMENT MAINTENANCE,SERVICES,Goldisc Limited,471339,1700,861294416
BEIS,Met Office,2022-09-08,11 SERVICES,SERVICES,Goldisc Limited,471339,25,861294416
BEIS,Met Office,2022-09-08,11 SERVICES,SCIENCE,University Of Bristol,471351,12500,991261800
BEIS,Met Office,2022-09-08,11 SERVICES,SCIENCE,University Of Bristol,471352,25000,991261800
BEIS,Met Office,2022-09-08,11 SERVICES,PROGRAMMES,SCIENCE & TECHNOLOGY FACILITIES COUNCIL,471390,80000,287461957
BEIS,Met Office,2022-09-08,11 SERVICES,SERVICES,Landmark Information Group Ltd,471392,93343.5,634509735
BEIS,Met Office,2022-09-08,CYCLESCHEME,OTHER,EDENRED UK (CYCLESCHEME),471410,0,649 503 520
BEIS,Met Office,2022-09-08,CYCLESCHEME,OTHER,EDENRED UK (CYCLESCHEME),471410,10993.78,649 503 520
BEIS,Met Office,2022-09-08,11 SERVICES,CHIEF FINANCIAL OFFICER,EXPONENTIAL-E,471412,461.43,GB798572653
BEIS,Met Office,2022-09-08,11 SERVICES,TECHNOLOGY AND CIO,CLOUDREACH EUROPE LIMITED,471417,5150,978187168
BEIS,Met Office,2022-09-08,11 SERVICES,MARKETS,MOMENTUM INCORPORATED,471418,6000,598958541
BEIS,Met Office,2022-09-08,04 CONTRACTORS,PEOPLE,MATRIX SCM LIMITED,471419,181825.82,249 5734 68
BEIS,Met Office,2022-09-08,13 MISCELLANEOUS,PEOPLE,RESTORE RECORDS MANAGEMENT,471420,13.18,843 863011
BEIS,Met Office,2022-09-08,03 STAFF COSTS T&S,CHIEF FINANCIAL OFFICER,ENTERPRISE RENT A CAR UK LTD,471422,982.46,215557314
BEIS,Met Office,2022-09-08,13 MISCELLANEOUS,SERVICES,IMAGETEK SYSTEMS LTD,471424,1278,GB586331424
BEIS,Met Office,2022-09-08,06 ACCOMMODATION,CHIEF FINANCIAL OFFICER,ST MODWEN VENTURES LTD,471427,11.99,975081008
BEIS,Met Office,2022-09-09,11 SERVICES,SERVICES,Boc Ltd,471230,38419.1,226556555
BEIS,Met Office,2022-09-09,11 SERVICES,OTHER,HOGAN LOVELLS INTERNATIONAL LLP,471357,2926.44,GB123371543
BEIS,Met Office,2022-09-09,11 SERVICES,OTHER,HOGAN LOVELLS INTERNATIONAL LLP,471358,6321.18,GB123371543
BEIS,Met Office,2022-09-09,06 ACCOMMODATION,CHIEF FINANCIAL OFFICER,BUSINESS SUPPORT CENTRE LTD,471428,1027.28,927365208
BEIS,Met Office,2022-09-12,11 SERVICES,TECHNOLOGY AND CIO,BAE SYSTEMS APPLIED INTELLIGENCE LIMITED,471075,3265.59,GB641407169
BEIS,Met Office,2022-09-12,11 SERVICES,TECHNOLOGY AND CIO,BAE SYSTEMS APPLIED INTELLIGENCE LIMITED,471341,4740.37,GB641407169
BEIS,Met Office,2022-09-12,11 SERVICES,TECHNOLOGY AND CIO,BAE SYSTEMS APPLIED INTELLIGENCE LIMITED,471342,-3265.59,GB641407169
BEIS,Met Office,2022-09-12,11 SERVICES,TECHNOLOGY AND CIO,BAE SYSTEMS APPLIED INTELLIGENCE LIMITED,471361,5644.14,GB641407169
BEIS,Met Office,2022-09-12,11 SERVICES,PROGRAMMES,Npl Management Ltd,471423,-873.04,207523388
BEIS,Met Office,2022-09-12,11 SERVICES,MARKETS,BJSS LIMITED,471448,12150,613295452
BEIS,Met Office,2022-09-12,11 SERVICES,MARKETS,BJSS LIMITED,471453,19025,613295452
BEIS,Met Office,2022-09-12,11 SERVICES,PROGRAMMES,BJSS LIMITED,471456,91706.25,613295452
BEIS,Met Office,2022-09-12,04 CONTRACTORS,SERVICES,AFBI,471468,50,252677738
BEIS,Met Office,2022-09-12,03 STAFF COSTS T&S,SERVICES,FALKLAND ISLAND COMPANY LTD,471479,700,N/A
BEIS,Met Office,2022-09-12,03 STAFF COSTS T&S,SERVICES,FALKLAND ISLAND COMPANY LTD,471480,700,N/A
BEIS,Met Office,2022-09-12,03 STAFF COSTS T&S,SERVICES,FALKLAND ISLAND COMPANY LTD,471481,700,N/A
BEIS,Met Office,2022-09-12,03 STAFF COSTS T&S,CHIEF FINANCIAL OFFICER,ENTERPRISE RENT A CAR UK LTD,471484,75,215557314
BEIS,Met Office,2022-09-12,11 SERVICES,MARKETS,ULTRA ELECTRONICS LTD NUCLEAR CONTROL SYSTEMS,471487,4146.36,123340754
BEIS,Met Office,2022-09-13,STOCK,SERVICES,YORLAB,470070,0,288849088
BEIS,Met Office,2022-09-13,STOCK,SERVICES,YORLAB,470070,0,288849088
BEIS,Met Office,2022-09-13,TRADE CREDITORS,SERVICES,YORLAB,470070,1596,288849088
BEIS,Met Office,2022-09-13,TRADE CREDITORS,SERVICES,YORLAB,470070,798,288849088
BEIS,Met Office,2022-09-13,11 SERVICES,SERVICES,YORLAB,470070,17,288849088
BEIS,Met Office,2022-09-13,11 SERVICES,SERVICES,THREE BLIND MICE LTD,470257,1950,GB 645 434 730
BEIS,Met Office,2022-09-13,11 SERVICES,CHIEF FINANCIAL OFFICER,MAWASEM LTD,470868,100277.97,197694731
BEIS,Met Office,2022-09-13,11 SERVICES,SERVICES,PETERS & MAY GLOBAL LOGISTICS LTD,471252,1079.3,995183276
BEIS,Met Office,2022-09-13,11 SERVICES,TECHNOLOGY AND CIO,QA LTD,471347,4200,864455303
BEIS,Met Office,2022-09-13,11 SERVICES,SERVICES,CLOUDREACH EUROPE LIMITED,471416,7300,978187168
BEIS,Met Office,2022-09-13,11 SERVICES,PROGRAMMES,INTRAC,471451,750,768406891
BEIS,Met Office,2022-09-13,06 ACCOMMODATION,CHIEF FINANCIAL OFFICER,RIVER RIDGE,471462,117.53,176286083
BEIS,Met Office,2022-09-13,11 SERVICES,CHIEF FINANCIAL OFFICER,ACTIVE PEST MANAGEMENT,471463,86.1,791419116
BEIS,Met Office,2022-09-13,06 ACCOMMODATION,CHIEF FINANCIAL OFFICER,SAFESTORE LTD,471470,2815.28,722887607
BEIS,Met Office,2022-09-13,11 SERVICES,CHIEF FINANCIAL OFFICER,FSI (FM SOLUTIONS) LTD,471472,990,166398173
BEIS,Met Office,2022-09-13,11 SERVICES,CHIEF FINANCIAL OFFICER,FSI (FM SOLUTIONS) LTD,471475,10836.72,166398173
BEIS,Met Office,2022-09-13,11 SERVICES,CHIEF FINANCIAL OFFICER,SURE SOUTH ATLANTIC LTD,471476,799.13,-
BEIS,Met Office,2022-09-13,11 SERVICES,CHIEF FINANCIAL OFFICER,SURE SOUTH ATLANTIC LTD,471477,4839.8,-
BEIS,Met Office,2022-09-13,13 MISCELLANEOUS,SCIENCE,University Of Oxford,471486,333.34,125506730
BEIS,Met Office,2022-09-13,13 MISCELLANEOUS,SERVICES,IMAGETEK SYSTEMS LTD,471489,3020.32,GB586331424
BEIS,Met Office,2022-09-13,06 ACCOMMODATION,CHIEF FINANCIAL OFFICER,BIDVEST NOONAN UK LTD,471490,0.01,GB847176988
BEIS,Met Office,2022-09-13,06 ACCOMMODATION,CHIEF FINANCIAL OFFICER,BIDVEST NOONAN UK LTD,471490,457.3,GB847176988
BEIS,Met Office,2022-09-13,06 ACCOMMODATION,CHIEF FINANCIAL OFFICER,BIDVEST NOONAN UK LTD,471491,1013.82,GB847176988
BEIS,Met Office,2022-09-13,06 ACCOMMODATION,CHIEF FINANCIAL OFFICER,BIDVEST NOONAN UK LTD,471491,0.01,GB847176988
BEIS,Met Office,2022-09-13,03 STAFF COSTS T&S,SERVICES,AIRPORT CAR RENTALS LTD,471492,320,-
BEIS,Met Office,2022-09-13,11 SERVICES,CHIEF FINANCIAL OFFICER,JERSEY TELECOM,471502,1287.21,NOTVATREG
BEIS,Met Office,2022-09-13,13 MISCELLANEOUS,CHIEF FINANCIAL OFFICER,Royal Meteorological Society,471503,15.09,-
BEIS,Met Office,2022-09-13,13 MISCELLANEOUS,CHIEF FINANCIAL OFFICER,Royal Meteorological Society,471504,137.94,-
BEIS,Met Office,2022-09-13,11 SERVICES,CHIEF FINANCIAL OFFICER,BT CONFERENCING,471505,30.92,245719348
BEIS,Met Office,2022-09-13,06 ACCOMMODATION,CHIEF FINANCIAL OFFICER,SHETLAND CLEANING SERVICES,471506,769.57,430028404
BEIS,Met Office,2022-09-13,11 SERVICES,PROGRAMMES,ROWE IT LTD,471519,16106,924964394
BEIS,Met Office,2022-09-13,11 SERVICES,PROGRAMMES,ROWE IT LTD,471519,4026.5,924964394
BEIS,Met Office,2022-09-13,11 SERVICES,PROGRAMMES,ROWE IT LTD,471519,50331.25,924964394
BEIS,Met Office,2022-09-13,11 SERVICES,PROGRAMMES,ROWE IT LTD,471519,80530,924964394
BEIS,Met Office,2022-09-13,11 SERVICES,PROGRAMMES,ROWE IT LTD,471519,50331.25,924964394
BEIS,Met Office,2022-09-13,13 MISCELLANEOUS,CHIEF FINANCIAL OFFICER,Royal Meteorological Society,471526,-153.03,-
BEIS,Met Office,2022-09-13,11 SERVICES,PEOPLE,REDACTED PERSONAL DATA,471460,825,143043312
BEIS,Met Office,2022-09-13,11 SERVICES,PEOPLE,REDACTED PERSONAL DATA,471461,445.5,143043312
BEIS,Met Office,2022-09-14,11 SERVICES,TECHNOLOGY AND CIO,AMAZON WEB SERVICES INC.,10748,495.97,N/A
BEIS,Met Office,2022-09-14,11 SERVICES,TECHNOLOGY AND CIO,AMAZON WEB SERVICES INC.,10749,62.82,N/A
BEIS,Met Office,2022-09-14,11 SERVICES,SERVICES,NSSL GLOBAL LTD,10763,59.58,725151948
BEIS,Met Office,2022-09-14,11 SERVICES,SERVICES,NSSL GLOBAL LTD,10764,76.61,725151948
BEIS,Met Office,2022-09-14,11 SERVICES,PROGRAMMES,"K F LEWIN CONSULTING, LLC",10793,17065.23,-
BEIS,Met Office,2022-09-14,11 SERVICES,PROGRAMMES,"K F LEWIN CONSULTING, LLC",10794,-1007.85,-
BEIS,Met Office,2022-09-14,11 SERVICES,PROGRAMMES,"K F LEWIN CONSULTING, LLC",10795,1034.6,-
BEIS,Met Office,2022-09-14,10 EQUIPMENT MAINTENANCE,SERVICES,VAISALA LTD,24139,918.82,336100011
BEIS,Met Office,2022-09-14,07 EQUIPMENT,SERVICES,VAISALA LTD,24144,8358.7,336100011
BEIS,Met Office,2022-09-14,STOCK,SERVICES,VAISALA LTD,24149,0,336100011
BEIS,Met Office,2022-09-14,TRADE CREDITORS,SERVICES,VAISALA LTD,24149,4583.87,336100011
BEIS,Met Office,2022-09-14,12 INTERNATIONAL,MARKETS,MACITECHSY SOLUTIONS,471350,1344,-
BEIS,Met Office,2022-09-14,11 SERVICES,PROGRAMMES,BAE SYSTEMS APPLIED INTELLIGENCE LIMITED,471413,5274,GB641407169
BEIS,Met Office,2022-09-14,11 SERVICES,PROGRAMMES,BAE SYSTEMS APPLIED INTELLIGENCE LIMITED,471413,18760,GB641407169
BEIS,Met Office,2022-09-14,11 SERVICES,PROGRAMMES,BAE SYSTEMS APPLIED INTELLIGENCE LIMITED,471413,9529,GB641407169
BEIS,Met Office,2022-09-14,11 SERVICES,PROGRAMMES,BAE SYSTEMS APPLIED INTELLIGENCE LIMITED,471413,18760,GB641407169
BEIS,Met Office,2022-09-14,11 SERVICES,PROGRAMMES,BAE SYSTEMS APPLIED INTELLIGENCE LIMITED,471413,23260,GB641407169
BEIS,Met Office,2022-09-14,11 SERVICES,PROGRAMMES,BAE SYSTEMS APPLIED INTELLIGENCE LIMITED,471413,17353,GB641407169
BEIS,Met Office,2022-09-14,11 SERVICES,PROGRAMMES,BAE SYSTEMS APPLIED INTELLIGENCE LIMITED,471413,10859,GB641407169
BEIS,Met Office,2022-09-14,11 SERVICES,PROGRAMMES,BAE SYSTEMS APPLIED INTELLIGENCE LIMITED,471413,9966.25,GB641407169
BEIS,Met Office,2022-09-14,11 SERVICES,PROGRAMMES,BAE SYSTEMS APPLIED INTELLIGENCE LIMITED,471413,3300,GB641407169
BEIS,Met Office,2022-09-14,11 SERVICES,PROGRAMMES,BAE SYSTEMS APPLIED INTELLIGENCE LIMITED,471413,15119,GB641407169
BEIS,Met Office,2022-09-14,11 SERVICES,PROGRAMMES,BAE SYSTEMS APPLIED INTELLIGENCE LIMITED,471414,8115,GB641407169
BEIS,Met Office,2022-09-14,11 SERVICES,PROGRAMMES,BAE SYSTEMS APPLIED INTELLIGENCE LIMITED,471415,8100,GB641407169
BEIS,Met Office,2022-09-14,12 INTERNATIONAL,MARKETS,MACITECHSY SOLUTIONS,471452,2207.17,-
BEIS,Met Office,2022-09-14,12 INTERNATIONAL,MARKETS,MACITECHSY SOLUTIONS,471452,937.06,-
BEIS,Met Office,2022-09-14,11 SERVICES,CHIEF FINANCIAL OFFICER,ANVIL MOBILE LIMITED,471482,342.16,981686175
BEIS,Met Office,2022-09-14,11 SERVICES,PROGRAMMES,BAE SYSTEMS APPLIED INTELLIGENCE LIMITED,471507,3489.41,GB641407169
BEIS,Met Office,2022-09-14,11 SERVICES,PROGRAMMES,BAE SYSTEMS APPLIED INTELLIGENCE LIMITED,471507,0.01,GB641407169
BEIS,Met Office,2022-09-14,11 SERVICES,PROGRAMMES,BAE SYSTEMS APPLIED INTELLIGENCE LIMITED,471507,0.01,GB641407169
BEIS,Met Office,2022-09-14,07 EQUIPMENT,TECHNOLOGY AND CIO,CDW LTD,471523,6120.4,902194939
BEIS,Met Office,2022-09-14,06 ACCOMMODATION,CHIEF FINANCIAL OFFICER,BUSINESS SUPPORT CENTRE LTD,471531,38.99,927365208
BEIS,Met Office,2022-09-14,11 SERVICES,CHIEF FINANCIAL OFFICER,SURE SOUTH ATLANTIC LTD,471532,2168.79,NOVATREG
BEIS,Met Office,2022-09-14,06 ACCOMMODATION,CHIEF FINANCIAL OFFICER,BUSINESS STREAM,471554,168.89,945850885
BEIS,Met Office,2022-09-14,11 SERVICES,CHIEF FINANCIAL OFFICER,GIBRALTAR NYNEX COMMUNICATIONS LTD,471559,660,NOVAT
BEIS,Met Office,2022-09-14,12 INTERNATIONAL,MARKETS,REDACTED PERSONAL DATA,10776,2979.12,-
BEIS,Met Office,2022-09-14,12 INTERNATIONAL,MARKETS,REDACTED PERSONAL DATA,10776,197.47,-
BEIS,Met Office,2022-09-14,06 ACCOMMODATION,CHIEF FINANCIAL OFFICER,REDACTED PERSONAL DATA,471525,4185.25,001874305
BEIS,Met Office,2022-09-15,06 ACCOMMODATION,CHIEF FINANCIAL OFFICER,CBRE MANAGED SERVICES LTD,470901,0.01,853936883
BEIS,Met Office,2022-09-15,06 ACCOMMODATION,CHIEF FINANCIAL OFFICER,CBRE MANAGED SERVICES LTD,470901,6222.5,853936883
BEIS,Met Office,2022-09-15,11 SERVICES,MARKETS,ACCELERATION EMARKETING,471449,4281.89,848940776
BEIS,Met Office,2022-09-15,11 SERVICES,MARKETS,Ashfords Llp,471483,1767.59,844502439
BEIS,Met Office,2022-09-15,06 ACCOMMODATION,CHIEF FINANCIAL OFFICER,VICKERY HOLMAN,471593,4365.62,943875678
BEIS,Met Office,2022-09-15,11 SERVICES,TECHNOLOGY AND CIO,TSG TRAINING LTD,471596,230,GB 279 0047 91
BEIS,Met Office,2022-09-15,03 STAFF COSTS T&S,SERVICES,FALKLAND ISLAND COMPANY LTD,471599,2601.9,N/A
BEIS,Met Office,2022-09-16,11 SERVICES,SERVICES,MARINE MANAGEMENT ORGANISATION,471396,23.5,990 8229 84
BEIS,Met Office,2022-09-16,11 SERVICES,CHIEF FINANCIAL OFFICER,FSI (FM SOLUTIONS) LTD,471473,5423.93,166398173
BEIS,Met Office,2022-09-16,FIXTURE & FITTINGS,CHIEF FINANCIAL OFFICER,SIGNS EXPRESS (EXETER),471522,16620,631397439
BEIS,Met Office,2022-09-16,11 SERVICES,MARKETS,LHR BUSINESS SUPPORT CENTRE LTD,471567,13.75,927365404
BEIS,Met Office,2022-09-16,11 SERVICES,PROGRAMMES,LAFOSSE ASSOCIATES,471584,16500,GB 360026537
BEIS,Met Office,2022-09-16,11 SERVICES,TECHNOLOGY AND CIO,LAFOSSE ASSOCIATES,471585,17325,GB 360026537
BEIS,Met Office,2022-09-16,11 SERVICES,TECHNOLOGY AND CIO,LAFOSSE ASSOCIATES,471586,16087.5,GB 360026537
BEIS,Met Office,2022-09-16,11 SERVICES,PROGRAMMES,LAFOSSE ASSOCIATES,471587,9750,GB 360026537
BEIS,Met Office,2022-09-16,11 SERVICES,CHIEF FINANCIAL OFFICER,JERSEY TELECOM,471588,1284.32,NOTVATREG
BEIS,Met Office,2022-09-16,06 ACCOMMODATION,CHIEF FINANCIAL OFFICER,WEST LANCASHIRE BOROUGH COUNCIL,471589,132.16,-
BEIS,Met Office,2022-09-16,11 SERVICES,MARKETS,ULTRA ELECTRONICS LTD NUCLEAR CONTROL SYSTEMS,471597,4926.81,123340754
BEIS,Met Office,2022-09-16,04 CONTRACTORS,PEOPLE,MATRIX SCM LIMITED,471605,193488.55,249 5734 68
BEIS,Met Office,2022-09-16,06 ACCOMMODATION,MARKETS,BAE SYSTEMS APPLIED INTELLIGENCE LIMITED,471607,120,GB641407169
BEIS,Met Office,2022-09-16,10 EQUIPMENT MAINTENANCE,TECHNOLOGY AND CIO,ORACLE CORPORATION UK LTD,471608,8935.79,391313073
BEIS,Met Office,2022-09-16,11 SERVICES,CHIEF FINANCIAL OFFICER,SURE SOUTH ATLANTIC LTD (ST HELENA),471609,1650,30005
BEIS,Met Office,2022-09-16,11 SERVICES,CHIEF FINANCIAL OFFICER,UK CONNECT LTD,471612,3760,154468983
BEIS,Met Office,2022-09-16,10 EQUIPMENT MAINTENANCE,SERVICES,YOUNG CALIBRATION LIMITED,471628,2200,673900720
BEIS,Met Office,2022-09-16,11 SERVICES,SERVICES,YOUNG CALIBRATION LIMITED,471628,15,673900720
BEIS,Met Office,2022-09-16,06 ACCOMMODATION,CHIEF FINANCIAL OFFICER,LHR BUSINESS SUPPORT CENTRE LTD,471630,3062.92,927365404
BEIS,Met Office,2022-09-16,12 INTERNATIONAL,MARKETS,HUBKEN GROUP LTD,471631,3070,GB 8337554 13
BEIS,Met Office,2022-09-16,12 INTERNATIONAL,MARKETS,HUBKEN GROUP LTD,471632,5980,GB 8337554 13
BEIS,Met Office,2022-09-16,12 INTERNATIONAL,MARKETS,HUBKEN GROUP LTD,471633,3070,GB 8337554 13
BEIS,Met Office,2022-09-16,03 STAFF COSTS T&S,CHIEF FINANCIAL OFFICER,ENTERPRISE RENT A CAR UK LTD,471636,1471.48,215557314
BEIS,Met Office,2022-09-20,06 ACCOMMODATION,CHIEF FINANCIAL OFFICER,Devon County Council,468967,13331,142208113
BEIS,Met Office,2022-09-20,06 ACCOMMODATION,CHIEF FINANCIAL OFFICER,Devon County Council,469649,-13331,142208113
BEIS,Met Office,2022-09-20,11 SERVICES,CHIEF FINANCIAL OFFICER,POSTURITE (UK) LTD,470547,37.23,583565114
BEIS,Met Office,2022-09-20,11 SERVICES,CHIEF FINANCIAL OFFICER,POSTURITE (UK) LTD,470755,54.56,583565114
BEIS,Met Office,2022-09-20,06 ACCOMMODATION,CHIEF FINANCIAL OFFICER,Devon County Council,471218,10808,142208113
BEIS,Met Office,2022-09-20,11 SERVICES,CHIEF FINANCIAL OFFICER,POSTURITE (UK) LTD,471426,50,583565114
BEIS,Met Office,2022-09-20,11 SERVICES,CHIEF FINANCIAL OFFICER,POSTURITE (UK) LTD,471474,50,583565114
BEIS,Met Office,2022-09-20,06 ACCOMMODATION,CHIEF FINANCIAL OFFICER,South West Water Ltd,471557,6674.5,236873674
BEIS,Met Office,2022-09-20,06 ACCOMMODATION,CHIEF FINANCIAL OFFICER,EDF ENERGY CUSTOMERS PLC,471558,5276.58,523041202
BEIS,Met Office,2022-09-20,11 SERVICES,CHIEF FINANCIAL OFFICER,GB GROUP PLC,471594,616.59,539716218
BEIS,Met Office,2022-09-20,06 ACCOMMODATION,MARKETS,UK FLIGHT SAFETY COMMITTEE,471606,1200,-
BEIS,Met Office,2022-09-20,11 SERVICES,CHIEF FINANCIAL OFFICER,POSTURITE (UK) LTD,471610,204.2,583565114
BEIS,Met Office,2022-09-20,11 SERVICES,CHIEF FINANCIAL OFFICER,INTEROUTE COMMUNICATIONS LIMITED,471627,7100,832 7071 39
BEIS,Met Office,2022-09-20,11 SERVICES,CHIEF FINANCIAL OFFICER,MAWASEM LTD,471629,177101.96,197694731
BEIS,Met Office,2022-09-20,11 SERVICES,TECHNOLOGY AND CIO,CLOUDREACH EUROPE LIMITED,471655,4691.6,978187168
BEIS,Met Office,2022-09-20,11 SERVICES,PROGRAMMES,SPECIALIST COMPUTER CENTRES,471656,10000,313651680
BEIS,Met Office,2022-09-20,11 SERVICES,MARKETS,UKRI,471657,50286.2,GB287461957
BEIS,Met Office,2022-09-20,03 STAFF COSTS T&S,CHIEF FINANCIAL OFFICER,ALLSTAR BUSINESS SOLUTIONS LTD,471659,3335.38,747880191
BEIS,Met Office,2022-09-20,11 SERVICES,PROGRAMMES,OVERSEAS DEVELOPMENT INSTITUTE SALES LTD,471660,36450,250 3150 54
BEIS,Met Office,2022-09-20,11 SERVICES,PROGRAMMES,OVERSEAS DEVELOPMENT INSTITUTE SALES LTD,471661,18240,250 3150 54
BEIS,Met Office,2022-09-20,03 STAFF COSTS T&S,CHIEF FINANCIAL OFFICER,ENTERPRISE RENT A CAR UK LTD,471669,2440.2,215557314
BEIS,Met Office,2022-09-20,03 STAFF COSTS T&S,CHIEF FINANCIAL OFFICER,ENTERPRISE RENT A CAR UK LTD,471685,397.7,215557314
BEIS,Met Office,2022-09-20,11 SERVICES,PEOPLE,REDACTED PERSONAL DATA,471464,3059.5,143043312
BEIS,Met Office,2022-09-21,08 SOFTWARE LICENCES,PEOPLE,PLURALSIGHT,10689,1338.4,EU826020045
BEIS,Met Office,2022-09-21,11 SERVICES,PEOPLE,PLURALSIGHT,10750,60126.07,EU826020045
BEIS,Met Office,2022-09-21,11 SERVICES,MARKETS,RIMES,10760,18051.76,-
BEIS,Met Office,2022-09-21,11 SERVICES,MARKETS,RIMES,10761,15121.16,-
BEIS,Met Office,2022-09-21,11 SERVICES,PEOPLE,PLURALSIGHT,10796,15607.29,EU826020045
BEIS,Met Office,2022-09-21,11 SERVICES,TECHNOLOGY AND CIO,AMAZON WEB SERVICES INC.,10802,16276.23,N/A
BEIS,Met Office,2022-09-21,11 SERVICES,MARKETS,"IBL SOFTWARE ENGINEERING, SPOL S.R.O.",23894,569334.08,SK2020241883
BEIS,Met Office,2022-09-21,11 SERVICES,MARKETS,"IBL SOFTWARE ENGINEERING, SPOL S.R.O.",23894,110197.09,SK2020241883
BEIS,Met Office,2022-09-21,11 SERVICES,MARKETS,"IBL SOFTWARE ENGINEERING, SPOL S.R.O.",23894,213356.36,SK2020241883
BEIS,Met Office,2022-09-21,10 EQUIPMENT MAINTENANCE,SERVICES,DEUTSCHE WINDGUARD WIND TUNNEL SERVICES GMBH,24169,2824.9,DE225152482
BEIS,Met Office,2022-09-21,10 EQUIPMENT MAINTENANCE,SERVICES,DEUTSCHE WINDGUARD WIND TUNNEL SERVICES GMBH,24169,43.59,DE225152482
BEIS,Met Office,2022-09-21,10 EQUIPMENT MAINTENANCE,SERVICES,DEUTSCHE WINDGUARD WIND TUNNEL SERVICES GMBH,24169,17.44,DE225152482
BEIS,Met Office,2022-09-21,06 ACCOMMODATION,CHIEF FINANCIAL OFFICER,TOTAL GAS & POWER LIMITED,471568,280.41,689638949
BEIS,Met Office,2022-09-21,06 ACCOMMODATION,CHIEF FINANCIAL OFFICER,TOTAL GAS & POWER LIMITED,471569,9791.07,689638949
BEIS,Met Office,2022-09-21,11 SERVICES,SERVICES,DHL GLOBAL FORWARDING (UK) LTD,471611,4250.22,745260438
BEIS,Met Office,2022-09-21,06 ACCOMMODATION,CHIEF FINANCIAL OFFICER,BIDVEST NOONAN UK LTD,471663,238.14,GB847176988
BEIS,Met Office,2022-09-21,11 SERVICES,SERVICES,APPLIED SATELLITE TECHNOLOGY SYSTEMS LTD,471676,12098.8,720108683
BEIS,Met Office,2022-09-21,11 SERVICES,SERVICES,APPLIED SATELLITE TECHNOLOGY SYSTEMS LTD,471681,318.15,720108683
BEIS,Met Office,2022-09-22,11 SERVICES,MARKETS,National Oceanography Centre,468558,30770.19,GB 338 5487 64
BEIS,Met Office,2022-09-22,11 SERVICES,MARKETS,National Oceanography Centre,469120,-30770.19,GB 338 5487 64
BEIS,Met Office,2022-09-22,08 SOFTWARE LICENCES,TECHNOLOGY AND CIO,COMPUTACENTER (UK) LTD,470689,7824.47,490334648
BEIS,Met Office,2022-09-22,11 SERVICES,TECHNOLOGY AND CIO,QA LTD,471340,3000,864455303
BEIS,Met Office,2022-09-22,11 SERVICES,PROGRAMMES,HOGAN LOVELLS INTERNATIONAL LLP,471359,12388.78,GB123371543
BEIS,Met Office,2022-09-22,11 SERVICES,PROGRAMMES,BAE SYSTEMS APPLIED INTELLIGENCE LIMITED,471658,1968.75,GB641407169
BEIS,Met Office,2022-09-22,12 INTERNATIONAL,MARKETS,APPLIED SATELLITE TECHNOLOGY SYSTEMS LTD,471679,36.68,720108683
BEIS,Met Office,2022-09-22,12 INTERNATIONAL,MARKETS,IDEMS INTERNATIONAL COMMUNITY INTEREST CO,471707,4500,-
BEIS,Met Office,2022-09-22,13 MISCELLANEOUS,SCIENCE,University Of Reading,471708,333.33,200012659
BEIS,Met Office,2022-09-22,11 SERVICES,SERVICES,National Oceanography Centre,471709,210200,GB 338 5487 64
BEIS,Met Office,2022-09-22,11 SERVICES,SERVICES,National Oceanography Centre,471709,42450,GB 338 5487 64
BEIS,Met Office,2022-09-22,13 MISCELLANEOUS,SERVICES,National Oceanography Centre,471709,3387.45,GB 338 5487 64
BEIS,Met Office,2022-09-22,06 ACCOMMODATION,CHIEF FINANCIAL OFFICER,South West Water Ltd,471711,801.15,236873674
BEIS,Met Office,2022-09-22,06 ACCOMMODATION,CHIEF FINANCIAL OFFICER,SHETLAND CLEANING SERVICES,471713,739.97,430028404
BEIS,Met Office,2022-09-22,TRADE CREDITORS,OTHER,NATWEST COMMERCIAL CARDS DIVISION,471686,139446.91,N/A
BEIS,Met Office,2022-09-22,07 EQUIPMENT,CHIEF FINANCIAL OFFICER,NATWEST COMMERCIAL CARDS DIVISION,471687,8000.83,N/A
BEIS,Met Office,2022-09-23,11 SERVICES,SERVICES,APPLIED SATELLITE TECHNOLOGY SYSTEMS LTD,471677,152.16,720108683
BEIS,Met Office,2022-09-23,11 SERVICES,SERVICES,APPLIED SATELLITE TECHNOLOGY SYSTEMS LTD,471683,883.47,720108683
BEIS,Met Office,2022-09-23,06 ACCOMMODATION,CHIEF FINANCIAL OFFICER,South West Water Ltd,471714,707.92,236873674
BEIS,Met Office,2022-09-23,FIXTURE & FITTINGS,CHIEF FINANCIAL OFFICER,STOIC ROOFING AND CONSTRUCTION LTD,471724,16099.65,288597426
BEIS,Met Office,2022-09-23,06 ACCOMMODATION,CHIEF FINANCIAL OFFICER,CBRE MANAGED SERVICES LTD,471735,11172.53,853936883
BEIS,Met Office,2022-09-23,06 ACCOMMODATION,CHIEF FINANCIAL OFFICER,CBRE MANAGED SERVICES LTD,471736,27809.34,853936883
BEIS,Met Office,2022-09-23,11 SERVICES,PEOPLE,HCR LTD,471737,1780.16,733 7205 46
BEIS,Met Office,2022-09-23,11 SERVICES,PROGRAMMES,GAMMA TELECOM LTD,471740,4418.95,823820344
BEIS,Met Office,2022-09-23,11 SERVICES,PROGRAMMES,GAMMA TELECOM LTD,471740,54,823820344
BEIS,Met Office,2022-09-23,11 SERVICES,PROGRAMMES,GAMMA TELECOM LTD,471740,38.04,823820344
BEIS,Met Office,2022-09-23,04 CONTRACTORS,PEOPLE,MATRIX SCM LIMITED,471742,185731.77,249 5734 68
BEIS,Met Office,2022-09-23,06 ACCOMMODATION,CHIEF FINANCIAL OFFICER,BAE SYSTEMS MARINE LTD,471768,120,641407169
BEIS,Met Office,2022-09-23,PAYE AND VAT,OTHER,HUBKEN GROUP LTD,471770,0,GB 8337554 13
BEIS,Met Office,2022-09-26,06 ACCOMMODATION,CHIEF FINANCIAL OFFICER,Exeter City Council,465750,140288,142335594
BEIS,Met Office,2022-09-26,11 SERVICES,CHIEF FINANCIAL OFFICER,EDSON TIGER LTD,471654,8250,166910983
BEIS,Met Office,2022-09-26,13 MISCELLANEOUS,SCIENCE,University Of Reading,471710,333.34,200012659
BEIS,Met Office,2022-09-26,11 SERVICES,PROGRAMMES,Microsoft Ltd,471756,239794,724594615
BEIS,Met Office,2022-09-26,11 SERVICES,TECHNOLOGY AND CIO,SPECIALIST COMPUTER CENTRES,471790,8000,313651680
BEIS,Met Office,2022-09-26,11 SERVICES,PEOPLE,ACTIVE LEARNING TEAM LTD,471792,2800,-
BEIS,Met Office,2022-09-26,11 SERVICES,PEOPLE,RESULTS CATALYSTS LTD,471793,1200,811 9181 42
BEIS,Met Office,2022-09-26,11 SERVICES,MARKETS,WALNUT UNLIMITED LIMITED,471795,7715,648857968
BEIS,Met Office,2022-09-27,11 SERVICES,SERVICES,APPLIED SATELLITE TECHNOLOGY SYSTEMS LTD,470076,284.35,720108683
BEIS,Met Office,2022-09-27,11 SERVICES,SERVICES,APPLIED SATELLITE TECHNOLOGY SYSTEMS LTD,470077,144.03,720108683
BEIS,Met Office,2022-09-27,11 SERVICES,SERVICES,APPLIED SATELLITE TECHNOLOGY SYSTEMS LTD,470078,71.72,720108683
BEIS,Met Office,2022-09-27,11 SERVICES,SERVICES,APPLIED SATELLITE TECHNOLOGY SYSTEMS LTD,470079,35.86,720108683
BEIS,Met Office,2022-09-27,11 SERVICES,SERVICES,APPLIED SATELLITE TECHNOLOGY SYSTEMS LTD,470081,89.55,720108683
BEIS,Met Office,2022-09-27,11 SERVICES,SERVICES,APPLIED SATELLITE TECHNOLOGY SYSTEMS LTD,470936,34.64,720108683
BEIS,Met Office,2022-09-27,11 SERVICES,SERVICES,APPLIED SATELLITE TECHNOLOGY SYSTEMS LTD,470937,69.28,720108683
BEIS,Met Office,2022-09-27,11 SERVICES,SERVICES,APPLIED SATELLITE TECHNOLOGY SYSTEMS LTD,470939,87.95,720108683
BEIS,Met Office,2022-09-27,11 SERVICES,SERVICES,APPLIED SATELLITE TECHNOLOGY SYSTEMS LTD,471678,93.02,720108683
BEIS,Met Office,2022-09-27,11 SERVICES,SERVICES,APPLIED SATELLITE TECHNOLOGY SYSTEMS LTD,471680,73.35,720108683
BEIS,Met Office,2022-09-27,11 SERVICES,SERVICES,APPLIED SATELLITE TECHNOLOGY SYSTEMS LTD,471682,36.68,720108683
BEIS,Met Office,2022-09-27,11 SERVICES,TECHNOLOGY AND CIO,BAE SYSTEMS APPLIED INTELLIGENCE LIMITED,471725,11880,GB641407169
BEIS,Met Office,2022-09-27,11 SERVICES,TECHNOLOGY AND CIO,BAE SYSTEMS APPLIED INTELLIGENCE LIMITED,471726,14539,GB641407169
BEIS,Met Office,2022-09-27,11 SERVICES,TECHNOLOGY AND CIO,BAE SYSTEMS APPLIED INTELLIGENCE LIMITED,471727,7590,GB641407169
BEIS,Met Office,2022-09-27,11 SERVICES,TECHNOLOGY AND CIO,BAE SYSTEMS APPLIED INTELLIGENCE LIMITED,471728,4781.25,GB641407169
BEIS,Met Office,2022-09-27,11 SERVICES,TECHNOLOGY AND CIO,BAE SYSTEMS APPLIED INTELLIGENCE LIMITED,471729,4690,GB641407169
BEIS,Met Office,2022-09-27,11 SERVICES,TECHNOLOGY AND CIO,BAE SYSTEMS APPLIED INTELLIGENCE LIMITED,471730,14070,GB641407169
BEIS,Met Office,2022-09-27,11 SERVICES,TECHNOLOGY AND CIO,BAE SYSTEMS APPLIED INTELLIGENCE LIMITED,471731,15946,GB641407169
BEIS,Met Office,2022-09-27,11 SERVICES,TECHNOLOGY AND CIO,BAE SYSTEMS APPLIED INTELLIGENCE LIMITED,471732,11373.25,GB641407169
BEIS,Met Office,2022-09-27,11 SERVICES,TECHNOLOGY AND CIO,BAE SYSTEMS APPLIED INTELLIGENCE LIMITED,471733,9045,GB641407169
BEIS,Met Office,2022-09-27,11 SERVICES,TECHNOLOGY AND CIO,BAE SYSTEMS APPLIED INTELLIGENCE LIMITED,471748,10820,GB641407169
BEIS,Met Office,2022-09-27,11 SERVICES,TECHNOLOGY AND CIO,BAE SYSTEMS APPLIED INTELLIGENCE LIMITED,471749,9000,GB641407169
BEIS,Met Office,2022-09-27,11 SERVICES,TECHNOLOGY AND CIO,BAE SYSTEMS APPLIED INTELLIGENCE LIMITED,471750,14070,GB641407169
BEIS,Met Office,2022-09-27,11 SERVICES,TECHNOLOGY AND CIO,BAE SYSTEMS APPLIED INTELLIGENCE LIMITED,471752,12540,GB641407169
BEIS,Met Office,2022-09-27,11 SERVICES,TECHNOLOGY AND CIO,BAE SYSTEMS APPLIED INTELLIGENCE LIMITED,471754,13200,GB641407169
BEIS,Met Office,2022-09-27,11 SERVICES,TECHNOLOGY AND CIO,BAE SYSTEMS APPLIED INTELLIGENCE LIMITED,471755,6750,GB641407169
BEIS,Met Office,2022-09-27,11 SERVICES,TECHNOLOGY AND CIO,BAE SYSTEMS APPLIED INTELLIGENCE LIMITED,471757,3600,GB641407169
BEIS,Met Office,2022-09-27,06 ACCOMMODATION,CHIEF FINANCIAL OFFICER,BAE SYSTEMS APPLIED INTELLIGENCE LIMITED,471769,-120,GB641407169
BEIS,Met Office,2022-09-27,06 ACCOMMODATION,CHIEF FINANCIAL OFFICER,Wessex Water Services Ltd,471810,500,-
BEIS,Met Office,2022-09-27,03 STAFF COSTS T&S,CHIEF FINANCIAL OFFICER,ENTERPRISE RENT A CAR UK LTD,471814,78,215557314
BEIS,Met Office,2022-09-27,03 STAFF COSTS T&S,CHIEF FINANCIAL OFFICER,ENTERPRISE RENT A CAR UK LTD,471815,3200.18,215557314
BEIS,Met Office,2022-09-27,03 STAFF COSTS T&S,CHIEF FINANCIAL OFFICER,ALLSTAR BUSINESS SOLUTIONS LTD,471816,2993.35,747880191
BEIS,Met Office,2022-09-27,11 SERVICES,PEOPLE,CIVICA UK LIMITED,471821,7503.5,391171065
BEIS,Met Office,2022-09-27,11 SERVICES,MARKETS,CENTRO INTERNACIONAL MEJORAMIENTO DE MAIZ Y T,471837,17644,CIM890330FI8
BEIS,Met Office,2022-09-27,08 SOFTWARE LICENCES,TECHNOLOGY AND CIO,COMPUTACENTER (UK) LTD,471838,1508.61,490334648
BEIS,Met Office,2022-09-27,10 EQUIPMENT MAINTENANCE,TECHNOLOGY AND CIO,COMPUTACENTER (UK) LTD,471839,2192.96,490334648
BEIS,Met Office,2022-09-27,03 STAFF COSTS T&S,CHIEF FINANCIAL OFFICER,RAINBOW CITY TAXIS,471845,22.65,724295039
BEIS,Met Office,2022-09-27,11 SERVICES,PROGRAMMES,FCDO,471848,5183.43,888813560
BEIS,Met Office,2022-09-27,11 SERVICES,PROGRAMMES,FCDO,471848,3637.12,888813560
BEIS,Met Office,2022-09-27,03 STAFF COSTS T&S,CHIEF FINANCIAL OFFICER,RAINBOW CITY TAXIS,471861,-22.65,724295039
BEIS,Met Office,2022-09-27,03 STAFF COSTS T&S,CHIEF FINANCIAL OFFICER,RAINBOW CITY TAXIS,471862,22.65,724295039
BEIS,Met Office,2022-09-27,11 SERVICES,CHIEF FINANCIAL OFFICER,REDACTED PERSONAL DATA,471791,450,-
BEIS,Met Office,2022-09-27,11 SERVICES,SERVICES,REDACTED PERSONAL DATA,471812,4633.2,-
BEIS,Met Office,2022-09-28,11 SERVICES,TECHNOLOGY AND CIO,AMAZON WEB SERVICES INC.,10762,1456.36,N/A
BEIS,Met Office,2022-09-28,11 SERVICES,MARKETS,RIMES,10766,926.08,-
BEIS,Met Office,2022-09-28,11 SERVICES,MARKETS,RIMES,10766,21076.84,-
BEIS,Met Office,2022-09-28,11 SERVICES,MARKETS,RIMES,10767,15682.93,-
BEIS,Met Office,2022-09-28,11 SERVICES,MARKETS,RIMES,10768,32854.57,-
BEIS,Met Office,2022-09-28,11 SERVICES,MARKETS,RIMES,10769,66289.65,-
BEIS,Met Office,2022-09-28,11 SERVICES,SERVICES,RAYMETRICS S.A. (GREEK ACCOUNT),24148,3140.29,EL999641589
BEIS,Met Office,2022-09-28,11 SERVICES,CHIEF FINANCIAL OFFICER,EIR,24173,53.4,4736919B
BEIS,Met Office,2022-09-28,10 EQUIPMENT MAINTENANCE,SERVICES,PMOD/WRC,471555,2063.95,197250
BEIS,Met Office,2022-09-28,11 SERVICES,PROGRAMMES,FUNDACAO ARTHUR BERNARDES - FUNARBE,471673,198204.43,-
BEIS,Met Office,2022-09-28,11 SERVICES,CHIEF FINANCIAL OFFICER,POSTURITE (UK) LTD,471794,656.5,583565114
BEIS,Met Office,2022-09-28,11 SERVICES,CHIEF FINANCIAL OFFICER,MITIE SECURITY LTD,471832,20780.59,416706654
BEIS,Met Office,2022-09-28,11 SERVICES,CHIEF FINANCIAL OFFICER,MITIE SECURITY LTD,471834,3117,416706654
BEIS,Met Office,2022-09-28,11 SERVICES,CHIEF FINANCIAL OFFICER,MITIE SECURITY LTD,471834,7273.5,416706654
BEIS,Met Office,2022-09-30,11 SERVICES,PROGRAMMES,University Of Cambridge,452459,9655.11,214222124
BEIS,Met Office,2022-09-30,11 SERVICES,PROGRAMMES,University Of Cambridge,469230,-9655.11,214222124
BEIS,Met Office,2022-09-30,11 SERVICES,PROGRAMMES,University Of Cambridge,470099,57705.28,214222124
BEIS,Met Office,2022-09-30,06 ACCOMMODATION,CHIEF FINANCIAL OFFICER,CBRE MANAGED SERVICES LTD,471822,149176.92,853936883
BEIS,Met Office,2022-09-30,06 ACCOMMODATION,CHIEF FINANCIAL OFFICER,CBRE MANAGED SERVICES LTD,471824,26005.27,853936883
BEIS,Met Office,2022-09-30,11 SERVICES,PEOPLE,TP HEALTH LTD,471828,1475,883064608
BEIS,Met Office,2022-09-30,06 ACCOMMODATION,CHIEF FINANCIAL OFFICER,Belfast International Airport Ltd,471835,260,617777601
BEIS,Met Office,2022-09-30,08 SOFTWARE LICENCES,TECHNOLOGY AND CIO,SPECIALIST COMPUTER CENTRES,471843,379.08,313651680
BEIS,Met Office,2022-09-30,FIXTURE & FITTINGS,CHIEF FINANCIAL OFFICER,FMS INTERIOR SERVICES LTD,471844,3255,922056940
BEIS,Met Office,2022-09-30,11 SERVICES,CHIEF FINANCIAL OFFICER,WEBEX COMMUNICATIONS UK LTD,471847,209.92,815974302
BEIS,Met Office,2022-09-30,11 SERVICES,TECHNOLOGY AND CIO,BAE SYSTEMS APPLIED INTELLIGENCE LIMITED,471877,7095,GB641407169
BEIS,Met Office,2022-09-30,11 SERVICES,TECHNOLOGY AND CIO,BAE SYSTEMS APPLIED INTELLIGENCE LIMITED,471878,3712.5,GB641407169
BEIS,Met Office,2022-09-30,11 SERVICES,TECHNOLOGY AND CIO,BAE SYSTEMS APPLIED INTELLIGENCE LIMITED,471880,1599.13,GB641407169
BEIS,Met Office,2022-09-30,11 SERVICES,TECHNOLOGY AND CIO,BAE SYSTEMS APPLIED INTELLIGENCE LIMITED,471882,10820,GB641407169
BEIS,Met Office,2022-09-30,11 SERVICES,TECHNOLOGY AND CIO,BAE SYSTEMS APPLIED INTELLIGENCE LIMITED,471883,1623,GB641407169
BEIS,Met Office,2022-09-30,11 SERVICES,TECHNOLOGY AND CIO,BAE SYSTEMS APPLIED INTELLIGENCE LIMITED,471884,9900,GB641407169
BEIS,Met Office,2022-09-30,11 SERVICES,TECHNOLOGY AND CIO,BAE SYSTEMS APPLIED INTELLIGENCE LIMITED,471885,8100,GB641407169
BEIS,Met Office,2022-09-30,11 SERVICES,SERVICES,Landmark Information Group Ltd,471887,5250,634509735
BEIS,Met Office,2022-09-30,11 SERVICES,SERVICES,Landmark Information Group Ltd,471888,34539.1,634509735
BEIS,Met Office,2022-09-30,10 EQUIPMENT MAINTENANCE,TECHNOLOGY AND CIO,COMPUTACENTER (UK) LTD,471897,3370.6,490334648
BEIS,Met Office,2022-09-30,11 SERVICES,PROGRAMMES,University Of Cambridge,471898,-57705.28,214222124
BEIS,Met Office,2022-09-30,11 SERVICES,PROGRAMMES,University Of Cambridge,471899,105846.57,214222124
BEIS,Met Office,2022-09-30,06 ACCOMMODATION,CHIEF FINANCIAL OFFICER,WARWICKSHIRE COLLEGE,471900,592.1,585279590
BEIS,Met Office,2022-09-30,11 SERVICES,CHIEF FINANCIAL OFFICER,BT plc,471901,1464.28,245719348
BEIS,Met Office,2022-09-30,10 EQUIPMENT MAINTENANCE,TECHNOLOGY AND CIO,ORACLE CORPORATION UK LTD,471903,8930.86,391313073
BEIS,Met Office,2022-09-30,13 MISCELLANEOUS,SCIENCE,University Of Reading,471904,1000,200012659
BEIS,Met Office,2022-09-30,13 MISCELLANEOUS,SCIENCE,University Of Reading,471905,1000,200012659
BEIS,Met Office,2022-09-30,11 SERVICES,CHIEF FINANCIAL OFFICER,WEBEX COMMUNICATIONS UK LTD,471909,251.9,815974302
BEIS,Met Office,2022-09-30,11 SERVICES,TECHNOLOGY AND CIO,BAE SYSTEMS APPLIED INTELLIGENCE LIMITED,471914,10230,GB641407169
BEIS,Met Office,2022-09-30,11 SERVICES,TECHNOLOGY AND CIO,BAE SYSTEMS APPLIED INTELLIGENCE LIMITED,471916,18760,GB641407169
BEIS,Met Office,2022-09-30,11 SERVICES,PEOPLE,ADJUST,471920,595,-
BEIS,Met Office,2022-09-30,04 CONTRACTORS,PEOPLE,MATRIX SCM LIMITED,471921,222974.93,249 5734 68
BEIS,Met Office,2022-09-30,06 ACCOMMODATION,CHIEF FINANCIAL OFFICER,MAPP (PROPERTY MANAGEMENT) LTD,471922,4497.6,725900735
BEIS,Met Office,2022-09-30,13 MISCELLANEOUS,MARKETS,BITPOD LIMITED,471924,1987.25,124 9359 03
